bitfinex/quotes_ETHUSD_20250508
["timestamp","ask_amount","ask_price","bid_price","bid_amount"]
[1746736229564,0.10559405,2133.5,2133.2,3.0]
[1746736229775,4.68634798,2133.9,2133.3,0.04686353]
[1746736229971,4.68659661,2133.8,2133.2,3.0]
[1746736230190,0.1062496,2133.7,2133.3,0.04686153]
[1746736230392,0.1062496,2133.7,2133.3,4.7343248]
[1746736230596,4.68680379,2133.7,2133.3,0.04686153]
[1746736230762,0.10592184,2133.6,2133.2,3.0]
[1746736230961,4.68615676,2134.0,2133.3,7.73429847]
[1746736231167,4.68574308,2134.2,2133.6,3.0]
[1746736231389,4.68611051,2134.0,2133.7,3.728]
[1746736231695,4.68682549,2133.7,2133.5,3.727]
[1746736231893,0.10690503,2133.9,2133.6,0.8228]
[1746736232196,4.68647982,2133.8,2133.6,0.8228]
[1746736232393,4.68669447,2133.7,2133.6,0.8228]
[1746736232597,4.68537693,2134.3,2133.6,0.86966492]
[1746736232798,4.68537693,2134.3,2133.6,0.8228]
[1746736233099,4.68635606,2133.9,2133.6,0.8228]
[1746736233407,3.699,2134.4,2133.6,0.8228]
[1746736233561,0.3699,2134.3,2133.6,0.8228]
[1746736233976,0.00534247,2133.9,2133.6,5.50968844]
[1746736234265,0.00534247,2133.9,2133.8,4.68647483]
[1746736234474,0.00534247,2133.9,2133.8,30.33034883]
[1746736234791,0.00534247,2133.9,2133.8,17.52487483]
[1746736235308,0.00534247,2133.9,2133.8,23.85233134]
[1746736235598,0.00534247,2133.9,2133.8,12.1404]
[1746736235899,3.698,2135.6,2134.2,0.7834]
[1746736235900,4.68406714,2134.9,2134.2,0.7834]
[1746736236102,0.7937,2135.6,2134.3,6.74383783]
[1746736236103,4.68372809,2135.1,2134.3,6.74383783]
[1746736236322,4.68410311,2134.9,2134.6,0.7834]
[1746736236474,4.68318842,2135.3,2134.6,0.7834]
[1746736236475,4.68395853,2135.0,2134.6,0.7834]
[1746736236672,0.7937,2135.6,2134.7,3.747]
[1746736236884,3.0,2135.5,2134.3,0.7834]
[1746736237084,4.68463991,2134.7,2134.3,0.7834]
[1746736237283,4.68397203,2135.0,2134.3,4.4804]
[1746736237491,4.68395654,2135.0,2134.5,4.68481243]
[1746736237684,0.7937,2135.3,2133.8,0.7834]
[1746736237889,4.68484458,2134.6,2134.1,4.68581066]
[1746736238072,4.68507305,2134.5,2134.0,3.0]
[1746736238406,0.93696986,2134.5,2133.9,3.809]
[1746736238611,0.55,2134.9,2133.9,3.809]
[1746736238797,0.55,2134.4,2133.1,0.7834]
[1746736239004,4.68731323,2133.5,2133.1,0.7834]
[1746736239205,4.68737874,2133.4,2133.2,3.813]
[1746736239520,4.68527013,2134.4,2133.2,3.813]
[1746736239521,0.7937,2134.5,2133.4,4.687378]
[1746736239720,0.64419155,2134.4,2133.2,3.813]
[1746736240020,4.68706373,2133.6,2133.2,3.813]
[1746736240216,4.68714943,2133.5,2133.3,3.0]
[1746736240417,4.68710146,2133.6,2133.2,3.813]
[1746736240623,4.68778416,2133.3,2133.1,0.7834]
[1746736240829,0.46871494,2133.5,2133.1,0.7834]
[1746736240979,0.09025785,2133.2,2133.1,0.7834]
[1746736241186,4.68779298,2133.2,2133.1,0.7834]
[1746736241489,4.68823253,2133.0,2132.9,3.823]
[1746736241689,4.77982979,2133.0,2132.9,3.823]
[1746736241913,4.68917593,2132.6,2132.4,0.7592]
[1746736242213,0.08937198,2132.5,2132.4,0.7592]
[1746736242382,0.08937198,2132.5,2131.9,4.5782]
[1746736242786,4.68992345,2132.3,2131.9,4.5782]
[1746736243028,4.68991016,2132.3,2131.9,4.5782]
[1746736243192,4.68881211,2132.8,2132.2,4.6898674]
[1746736243390,4.6885295,2132.9,2132.3,4.68968277]
[1746736243630,4.68839962,2133.0,2132.4,5.44859662]
[1746736243928,4.68730023,2133.5,2132.9,4.68830754]
[1746736244131,0.8289,2134.8,2133.9,10.56034073]
[1746736244434,4.68436479,2134.8,2134.4,3.0]
[1746736244612,0.8289,2135.1,2134.4,0.7592]
[1746736244613,4.68424921,2134.9,2134.4,0.7592]
[1746736244920,4.6844038,2134.8,2134.4,0.7592]
[1746736245094,4.68493792,2134.5,2134.4,0.7592]
[1746736245283,4.68583797,2134.1,2133.6,4.68680693]
[1746736245618,4.68647483,2133.8,2133.7,3.848]
[1746736245806,0.55,2134.5,2133.6,0.04686311]
[1746736246124,0.55,2134.5,2133.6,0.04686055]
[1746736246315,4.68652083,2133.8,2133.6,0.04686055]
[1746736246517,4.68669447,2133.7,2133.5,4.6052]
[1746736246688,4.68691413,2133.6,2133.5,4.6052]
[1746736246885,4.68687523,2133.7,2133.5,3.846]
[1746736247115,5.23537693,2134.3,2133.5,3.846]
[1746736247322,4.68691413,2133.6,2133.5,3.846]
[1746736247695,4.68581603,2134.1,2133.5,3.846]
[1746736248138,4.68679557,2133.7,2133.5,3.846]
[1746736248348,4.68657665,2133.8,2133.5,3.846]
[1746736248630,4.6861583,2134.0,2133.7,0.8184]
[1746736248831,4.6871121,2133.6,2133.5,3.836]
[1746736249030,0.55,2134.3,2133.5,3.836]
[1746736249327,4.6859178,2134.1,2133.6,0.04686269]
[1746736249527,4.68533695,2134.4,2133.7,8.52165493]
[1746736249700,4.68614978,2134.0,2133.7,3.835]
[1746736249887,4.68547954,2134.3,2133.7,3.835]
[1746736250085,0.7695,2135.1,2134.0,4.68596244]
[1746736250291,4.68490683,2134.6,2134.0,3.838]
[1746736250491,0.55,2135.0,2134.0,3.838]
[1746736250727,4.68424897,2134.9,2134.2,4.68548621]
[1746736250931,0.7695,2135.5,2134.4,0.8321]
[1746736251132,4.68461228,2134.7,2134.4,0.8321]
[1746736251291,4.68439345,2134.8,2134.4,0.8321]
[1746736251492,4.68439345,2134.8,2134.3,3.855]
[1746736251692,0.55,2134.8,2133.8,0.8321]
[1746736251927,4.68503212,2134.5,2133.9,8.54124616]
[1746736252221,4.685542,2134.3,2133.9,3.855]
[1746736253029,4.68575593,2134.2,2133.8,0.87895458]
[1746736253326,4.68602917,2134.1,2133.7,0.04685809]
[1746736254113,0.818,2134.2,2133.7,0.04685809]
[1746736254447,0.818,2134.2,2133.5,4.6401]
[1746736254745,4.68546896,2134.3,2133.6,4.73362733]
[1746736255042,0.55,2134.4,2133.6,0.04686161]
[1746736255344,5.2351735,2134.4,2133.6,0.04686161]
[1746736255645,0.767,2134.3,2133.0,5.95914415]
[1746736255819,4.68779298,2133.2,2133.1,0.41386128]
[1746736256226,4.68820547,2133.1,2132.7,0.8022]
[1746736256415,0.55,2134.0,2132.7,0.8022]
[1746736256617,4.387,2134.0,2132.7,0.8022]
[1746736256843,4.68795584,2133.2,2132.8,0.046877]
[1746736257015,4.68817994,2133.1,2132.7,0.8022]
[1746736257338,4.68735352,2133.4,2132.7,0.8022]
[1746736257536,0.60352535,2133.4,2132.8,0.04688119]
[1746736257738,4.68781512,2133.2,2132.8,0.04688119]
[1746736257938,5.48513028,2133.5,2132.8,4.7355184]
[1746736258138,4.68745272,2133.4,2132.9,4.68828026]
[1746736258331,4.68745272,2133.4,2133.0,0.04687702]
[1746736258531,4.68751299,2133.4,2133.0,0.04687702]
[1746736258752,8.52470064,2133.7,2133.0,0.04687702]
[1746736258952,4.6875642,2133.4,2133.0,0.04687702]
[1746736259155,8.52470064,2133.7,2133.1,4.68782075]
[1746736259156,3.838,2133.7,2133.1,4.68782075]
[1746736259365,4.68726249,2133.5,2133.0,4.73505111]
[1746736259522,4.68726249,2133.5,2133.0,0.04687702]
[1746736260052,0.7979,2133.8,2133.0,0.04687702]
[1746736260252,4.68722714,2133.5,2133.0,4.73509135]
[1746736260449,4.68722714,2133.5,2133.0,0.04687702]
[1746736260652,1.73571735,2134.3,2132.8,0.7956]
[1746736260865,5.51393208,2134.3,2133.3,0.7956]
[1746736261063,0.8285,2134.3,2133.5,4.68701646]
[1746736261359,5.5138928,2134.3,2133.4,3.848]
[1746736261563,4.68619456,2134.0,2133.4,3.848]
[1746736261735,4.68628848,2133.9,2133.5,4.68710935]
[1746736262058,4.68643622,2133.9,2133.4,8.5351568]
[1746736262252,4.68647814,2133.8,2133.4,3.848]
[1746736262455,4.68629906,2133.9,2133.4,8.53516415]
[1746736262661,4.68638739,2133.9,2133.4,8.53525607]
[1746736263362,0.8285,2134.3,2133.4,5.54984279]
[1746736263523,3.838,2134.4,2133.5,0.04685636]
[1746736263730,4.68656246,2133.8,2133.4,4.26107648]
[1746736263951,0.8285,2134.0,2133.3,0.7956]
[1746736264153,4.68765927,2133.3,2133.0,0.7956]
[1746736264360,4.68801275,2133.1,2132.9,3.834]
[1746736264644,4.68854179,2132.9,2132.6,11.61051113]
[1746736264984,4.68889201,2132.7,2132.6,3.93851113]
[1746736265155,4.68889201,2132.7,2132.6,3.14291113]
[1746736266250,6.06739201,2132.7,2132.6,3.14291113]
[1746736266440,5.51739201,2132.7,2132.6,3.14291113]
[1746736266645,4.68889201,2132.7,2132.6,3.14291113]
[1746736266955,4.68855073,2132.9,2132.6,3.14291113]
[1746736266956,4.68881409,2132.8,2132.6,3.14291113]
[1746736267174,5.23889201,2132.7,2132.6,3.14291113]
[1746736267684,5.23889201,2132.7,2131.8,3.14291113]
[1746736267685,4.69034608,2132.1,2131.8,3.14291113]
[1746736267980,4.69054151,2132.0,2131.8,3.14291113]
[1746736268347,4.69058283,2132.0,2131.8,3.14291113]
[1746736268783,4.388,2132.5,2131.8,3.14291113]
[1746736269009,4.388,2132.5,2131.8,3.92076224]
[1746736269207,8.06319691,2133.9,2132.0,0.7956]
[1746736269412,4.68757324,2133.3,2132.2,4.68987525]
[1746736269596,4.68801275,2133.1,2132.0,0.7956]
[1746736269919,7.68736179,2133.4,2132.2,3.832]
[1746736269920,4.68873947,2132.8,2132.2,3.832]
[1746736270084,4.68867449,2132.8,2132.3,4.73651385]
[1746736270416,4.68907581,2132.7,2132.2,3.832]
[1746736270585,3.839,2133.3,2132.4,4.68954511]
[1746736270910,3.839,2133.3,2132.3,0.04688874]
[1746736270911,4.68878189,2132.8,2132.5,1.26924339]
[1746736271283,4.68854756,2132.9,2132.5,1.26924339]
[1746736271681,4.68781722,2133.2,2132.5,1.26924339]
[1746736271911,4.68880947,2132.8,2132.5,1.26924339]
[1746736272410,4.68857322,2132.9,2132.6,0.04688588]
[1746736272615,4.68835966,2133.0,2132.6,1.02953403]
[1746736272908,4.68878625,2132.8,2132.6,1.02953403]
[1746736273117,4.68904601,2132.7,2132.5,5.09024339]
[1746736273410,4.68911188,2132.6,2132.5,0.7956]
[1746736273585,5.23757324,2133.3,2132.4,3.832]
[1746736273586,0.8285,2133.2,2132.4,3.832]
[1746736273781,4.68903529,2132.7,2132.4,3.87889042]
[1746736274105,4.68913794,2132.6,2132.4,3.832]
[1746736274412,3.832,2133.7,2132.5,13.90094447]
[1746736274581,0.8285,2133.9,2133.3,4.68744619]
[1746736274769,0.829,2134.3,2133.7,4.68651051]
[1746736274974,4.33735864,2135.0,2133.6,0.7725]
[1746736274975,1.07384003,2135.0,2134.1,4.6856426]
[1746736275175,4.68559647,2134.2,2133.6,0.7725]
[1746736275407,4.68612643,2134.0,2133.6,0.7725]
[1746736275598,4.68635795,2133.9,2133.6,0.7725]
[1746736275794,4.68592425,2134.1,2133.7,3.89286399]
[1746736275970,0.8149,2134.8,2133.8,3.0]
[1746736276175,0.8149,2135.1,2133.9,0.7784]
[1746736276376,4.68384074,2135.0,2134.0,6.877]
[1746736276611,4.68492842,2134.6,2134.1,4.68577394]
[1746736276976,4.68371592,2135.1,2134.2,3.0468493]
[1746736277183,3.832,2135.5,2134.9,0.7531]
[1746736277386,3.832,2135.5,2135.0,3.877]
[1746736277387,4.68362137,2135.1,2135.0,3.877]
[1746736277908,4.68384074,2135.0,2134.8,3.877]
[1746736278213,4.68406014,2134.9,2134.3,0.7963]
[1746736278510,4.6857018,2134.2,2133.9,4.6713]
[1746736278690,4.68528778,2134.4,2134.0,3.92185466]
[1746736278887,4.68528778,2134.4,2134.0,0.04685466]
[1746736278888,4.68525574,2134.4,2134.0,0.04685466]
[1746736279105,0.46852557,2134.3,2133.8,0.04685325]
[1746736279300,5.51456619,2134.5,2133.7,3.875]
[1746736279502,4.68569953,2134.2,2133.8,0.04685941]
[1746736279700,5.48293556,2134.8,2133.8,4.73316445]
[1746736279919,4.6805523,2136.5,2134.6,0.7937]
[1746736280101,5.17331336,2136.4,2135.0,0.7937]
[1746736280286,5.17331336,2136.4,2134.7,16.882]
[1746736280287,0.49252757,2136.4,2135.4,4.68296337]
[1746736280615,8.86119691,2137.5,2135.8,0.7935]
[1746736280815,4.68081332,2136.4,2136.0,3.0]
[1746736281017,4.67880035,2137.3,2135.9,5.43841107]
[1746736281018,4.68023259,2136.7,2135.9,5.43841107]
[1746736281211,4.6804897,2136.6,2136.2,3.0]
[1746736281408,3.988,2137.3,2135.9,0.7566]
[1746736281614,5.50405718,2137.0,2135.9,4.8216]
[1746736281831,4.68252481,2135.6,2135.5,4.8256]
[1746736281991,4.68203791,2135.9,2135.5,4.8256]
[1746736282324,4.68121763,2136.2,2135.5,4.8256]
[1746736282533,4.68204134,2135.9,2135.5,4.8256]
[1746736282700,4.68128551,2136.2,2135.5,5.30816]
[1746736282894,0.8246,2136.5,2135.5,5.30816]
[1746736282895,4.68077139,2136.4,2135.5,5.30816]
[1746736283091,6.987,2136.8,2135.5,5.30816]
[1746736283292,4.68252481,2135.6,2135.5,0.7566]
[1746736283597,5.48239427,2136.3,2134.7,16.882]
[1746736283801,4.6822525,2135.8,2135.2,0.8312]
[1746736284013,0.55,2136.2,2134.8,8.086]
[1746736284014,0.8012,2135.6,2135.0,4.098]
[1746736284216,4.68201478,2135.9,2135.0,4.098]
[1746736284217,8.66801478,2135.9,2135.0,4.098]
[1746736284416,4.68345312,2135.2,2135.0,4.098]
[1746736284619,4.68362137,2135.1,2135.0,4.098]
[1746736284848,4.68406014,2134.9,2134.8,0.8312]
[1746736285009,4.68427955,2134.8,2134.7,4.112]
[1746736285210,4.68449899,2134.7,2134.6,3.99122887]
[1746736285405,4.68438991,2134.8,2134.6,8.10122887]
[1746736285610,4.68449899,2134.7,2134.6,3.99122887]
[1746736286041,5.62138125,2134.7,2134.6,3.99122887]
[1746736286746,4.68603561,2134.0,2133.9,0.787]
[1746736286947,4.68603561,2134.0,2133.9,4.89]
[1746736287239,4.68603561,2134.0,2133.9,4.103]
[1746736287853,4.68628514,2133.9,2133.7,0.04685947]
[1746736288057,4.68628514,2133.9,2133.8,4.095]
[1746736288657,4.68571992,2134.2,2133.6,0.787]
[1746736288658,4.68579235,2134.2,2133.6,0.787]
[1746736288814,4.68642971,2133.9,2133.7,4.13386156]
[1746736289155,4.68633086,2133.9,2133.7,4.13386156]
[1746736289355,4.68633086,2133.9,2133.7,4.62594772]
[1746736289561,0.8231,2135.4,2134.1,5.49851603]
[1746736289858,4.68252481,2135.6,2134.7,0.8127]
[1746736290057,4.68230556,2135.7,2134.7,4.9227]
[1746736290241,1.68990148,2135.8,2134.7,4.9227]
[1746736290415,4.68230556,2135.7,2134.7,4.9227]
[1746736290754,4.68340641,2135.2,2134.8,3.04683247]
[1746736290955,4.68378147,2135.1,2134.8,3.0]
[1746736291254,6.37202102,2135.8,2134.7,4.9227]
[1746736291441,4.68359715,2135.2,2134.7,6.3519028]
[1746736291852,6.37202102,2135.8,2134.7,6.3519028]
[1746736291853,21.55343288,2136.1,2134.8,11.11003022]
[1746736292027,4.68036683,2136.6,2134.8,11.11003022]
[1746736292028,5.50346683,2136.6,2135.5,0.8127]
[1746736292354,4.68184211,2136.0,2135.6,4.15981633]
[1746736292758,4.68109961,2136.3,2135.8,4.68208332]
[1746736292964,4.6805523,2136.5,2135.9,4.72865653]
[1746736292965,4.68055364,2136.5,2135.9,4.72865653]
[1746736293169,4.67994871,2136.8,2136.3,4.68086296]
[1746736293316,4.67923822,2137.1,2136.0,0.8127]
[1746736293656,4.68075896,2136.5,2136.0,4.9237]
[1746736293859,4.68138937,2136.2,2136.0,0.8127]
[1746736294090,4.68077053,2136.5,2136.0,4.9327]
[1746736294253,4.68109536,2136.3,2136.0,4.9327]
[1746736294454,4.68016291,2136.7,2136.0,4.9327]
[1746736294455,4.67972254,2136.9,2136.4,4.68070554]
[1746736294657,4.67901927,2137.2,2136.2,0.04679849]
[1746736294838,9.48798392,2137.3,2136.2,4.139]
[1746736295043,4.68028893,2136.7,2136.3,0.0468023]
[1746736295305,4.68099049,2136.3,2136.2,4.139]
[1746736295645,4.67880035,2137.3,2136.4,0.8127]
[1746736295839,4.67932827,2137.1,2136.5,8.81953085]
[1746736296040,4.67832858,2137.6,2136.4,0.8127]
[1746736296277,4.68022754,2136.7,2136.5,4.164]
[1746736296477,4.67880035,2137.3,2136.5,5.07547]
[1746736296687,4.68033323,2136.6,2136.5,4.164]
[1746736297000,4.68033323,2136.6,2136.4,0.8127]
[1746736297153,4.67901927,2137.2,2136.4,0.8127]
[1746736297354,5.50257719,2137.0,2136.0,0.8127]
[1746736297553,0.8231,2137.0,2136.1,4.22480433]
[1746736297749,4.68023173,2136.7,2136.2,4.68110487]
[1746736298186,4.67989558,2136.8,2136.3,4.6809717]
[1746736298389,4.67934148,2137.1,2136.5,0.8127]
[1746736298554,4.67934148,2137.1,2136.6,5.2220916]
[1746736298761,4.67918898,2137.2,2136.7,8.85599496]
[1746736298966,0.005,2137.4,2136.7,4.176]
[1746736299181,0.005,2137.4,2136.8,0.04678907]
[1746736299182,4.67947074,2137.0,2136.8,0.04678907]
[1746736299408,0.005,2137.4,2136.9,4.67949496]
[1746736299584,0.005,2137.4,2137.2,0.8193]
[1746736299770,0.005,2137.4,2137.3,4.21978071]
[1746736299970,0.005,2137.4,2137.3,4.173]
[1746736300169,0.005,2137.4,2137.3,4.21978097]
[1746736300370,0.005,2137.4,2137.3,4.72368907]
[1746736300610,0.2888239,2138.0,2137.3,10.15492874]
[1746736300777,0.2888239,2138.0,2137.9,0.8193]
[1746736300976,0.2888239,2138.0,2137.9,5.0023]
[1746736301180,0.2888239,2138.0,2137.5,0.8193]
[1746736301382,0.2888239,2138.0,2137.7,4.183]
[1746736301816,4.67814371,2137.6,2137.5,0.8193]
[1746736302175,0.2888239,2138.0,2137.5,0.8193]
[1746736302376,0.2888239,2138.0,2137.8,4.67752156]
[1746736302581,0.2888239,2138.0,2137.1,0.8193]
[1746736302781,4.9661287,2138.0,2137.1,0.8193]
[1746736303000,4.9661287,2138.0,2137.0,4.228]
[1746736303001,4.67923822,2137.1,2137.0,4.228]
[1746736303276,4.67923822,2137.1,2136.7,0.8193]
[1746736303277,4.67989517,2136.8,2136.7,0.8193]
[1746736303481,4.67989517,2136.8,2136.5,4.226]
[1746736303482,4.68033323,2136.6,2136.5,4.226]
[1746736303916,4.136,2137.3,2136.5,4.226]
[1746736304125,4.68011419,2136.7,2136.6,0.04679791]
[1746736304281,4.68033323,2136.6,2136.5,4.226]
[1746736304481,4.68011419,2136.7,2136.5,4.226]
[1746736304482,4.68012733,2136.7,2136.5,4.226]
[1746736304682,4.6799905,2136.8,2136.4,0.04680122]
[1746736304907,4.67968854,2136.9,2136.4,9.50115427]
[1746736305225,4.67933564,2137.1,2136.5,3.0]
[1746736305380,4.67890346,2137.3,2136.8,4.67985759]
[1746736305578,4.67814371,2137.6,2136.6,0.8291]
[1746736305831,4.67937061,2137.1,2136.7,5.8742721]
[1746736306130,4.67971796,2136.9,2136.7,4.217]
[1746736306423,4.67836257,2137.5,2136.6,0.8291]
[1746736306652,4.67960025,2137.0,2136.6,0.8291]
[1746736306930,0.93560686,2137.6,2136.7,0.04679576]
[1746736307128,4.67789036,2137.8,2136.7,0.04679576]
[1746736307129,4.67923975,2137.1,2136.7,0.04679576]
[1746736307288,4.67770605,2137.8,2136.8,4.67974419]
[1746736307625,4.67867576,2137.4,2136.9,4.72646298]
[1746736307811,4.67867576,2137.4,2137.0,4.215]
[1746736308127,4.67901927,2137.2,2137.0,4.215]
[1746736308329,4.67923822,2137.1,2137.0,4.215]
[1746736308491,4.67972635,2136.9,2136.7,0.40854038]
[1746736308691,4.67880638,2137.3,2136.7,0.40854038]
[1746736308990,4.67949563,2137.0,2136.7,0.45533486]
[1746736309205,4.67949563,2137.0,2136.7,0.40854038]
[1746736309405,4.67880604,2137.3,2136.7,0.40854038]
[1746736309406,4.6796806,2136.9,2136.7,0.40854038]
[1746736309606,4.67989517,2136.8,2136.7,0.40854038]
[1746736310130,5.61585275,2136.8,2136.7,0.40854038]
[1746736310332,4.67989517,2136.8,2136.7,0.40854038]
[1746736310512,4.68029138,2136.7,2136.3,0.45702593]
[1746736310712,4.67999124,2136.8,2136.3,0.41022487]
[1746736311035,4.67999124,2136.8,2136.3,4.68098553]
[1746736311036,4.67999646,2136.8,2136.3,4.68098553]
[1746736311238,4.68077139,2136.4,2136.2,0.41022487]
[1746736311414,4.67978201,2136.9,2136.5,0.8111]
[1746736311620,4.67845742,2137.5,2136.6,4.19]
[1746736311819,4.67901927,2137.2,2136.6,4.23679727]
[1746736312050,4.68011419,2136.7,2136.6,4.19]
[1746736312230,4.67880035,2137.3,2136.6,4.19]
[1746736312538,4.67955934,2137.0,2136.7,4.182]
[1746736312739,4.67967871,2136.9,2136.7,4.22879848]
[1746736313045,4.67828861,2137.6,2136.8,4.67979562]
[1746736313243,5.17421608,2137.9,2136.7,8.86205082]
[1746736313244,4.67770605,2137.8,2136.7,8.86205082]
[1746736313539,1.32521287,2137.9,2136.7,11.40369103]
[1746736313540,4.67932464,2137.1,2136.7,11.40369103]
[1746736313740,4.67969551,2136.9,2136.5,3.8111]
[1746736314043,0.8286,2138.2,2136.9,8.49074266]
[1746736314252,0.8286,2138.2,2136.9,0.8111]
[1746736314546,4.96610846,2138.0,2137.0,4.67938964]
[1746736314862,4.96610846,2138.0,2136.9,1.0706688]
[1746736314863,0.2888239,2138.0,2137.3,4.67868804]
[1746736315007,0.2888239,2138.0,2137.5,0.8111]
[1746736315210,0.2888239,2138.0,2137.6,4.72472487]
[1746736315405,4.96610851,2138.0,2137.6,0.0467729]
[1746736315611,4.96610851,2138.0,2137.6,4.72488535]
[1746736316210,0.2888239,2138.0,2137.8,4.67759303]
[1746736316517,0.2888239,2138.0,2137.9,0.30717432]
[1746736316719,0.2888239,2138.0,2137.9,4.47317432]
[1746736317246,0.2888239,2138.0,2137.9,9.70135719]
[1746736317446,0.2888239,2138.0,2137.5,0.8111]
[1746736317610,4.67748725,2137.9,2137.1,4.9861]
[1746736317812,4.67812703,2137.7,2137.2,4.93913556]
[1746736318024,4.67812703,2137.7,2137.2,4.98588456]
[1746736318227,4.67780336,2137.8,2137.3,4.67861218]
[1746736318447,0.2888239,2138.0,2137.4,0.0467792]
[1746736318647,4.96618331,2138.0,2137.4,0.30686613]
[1746736318846,4.96618331,2138.0,2137.9,4.67748725]
[1746736318847,0.2888239,2138.0,2137.9,4.67748725]
[1746736319052,0.2888239,2138.0,2137.9,13.82958725]
[1746736319253,0.2888239,2138.0,2137.9,14.82152309]
[1746736319462,0.2888239,2138.0,2137.9,14.0896098]
[1746736319958,0.2888239,2138.0,2137.9,14.50169201]
[1746736320163,0.03208489,2138.4,2138.3,4.67661226]
[1746736320342,0.02390694,2141.9,2139.9,0.8294]
[1746736320524,0.02390694,2141.9,2141.1,0.8294]
[1746736320739,4.66798588,2142.3,2141.2,4.2927005]
[1746736321041,4.66984215,2141.4,2141.3,0.26002255]
[1746736321216,6.8904,2141.8,2141.3,0.26002255]
[1746736321547,4.67042883,2141.2,2140.8,4.26]
[1746736321762,4.66966233,2141.5,2140.9,0.26002255]
[1746736321763,4.67071461,2141.0,2140.9,0.26002255]
[1746736321960,4.67145164,2140.7,2140.3,4.257]
[1746736322162,4.67145164,2140.7,2139.7,0.8294]
[1746736322163,0.46714516,2140.7,2139.7,0.8294]
[1746736322461,0.8232,2141.4,2139.8,0.04671988]
[1746736322668,0.8232,2141.4,2139.8,3.0]
[1746736322825,4.66935912,2141.7,2141.1,4.67036581]
[1746736323029,4.66935912,2141.7,2141.0,0.8294]
[1746736323030,4.66941855,2141.6,2141.0,5.1184]
[1746736323225,6.264,2141.8,2141.1,0.04669874]
[1746736323473,6.90378739,2143.3,2142.1,0.55]
[1746736323639,6.22108739,2143.3,2143.2,15.72911702]
[1746736323835,0.0328007,2145.0,2143.2,15.72911702]
[1746736323836,0.0328007,2145.0,2143.3,3.0]
[1746736324258,0.0328007,2145.0,2143.1,4.66603454]
[1746736324259,0.8232,2144.8,2142.9,0.55]
[1746736324456,4.66287419,2144.6,2142.8,3.0]
[1746736324762,0.769,2144.4,2142.9,0.8312]
[1746736324975,4.66374405,2144.2,2142.9,0.8312]
[1746736325133,4.4628007,2145.0,2143.3,0.8312]
[1746736325134,0.769,2144.9,2143.3,0.8312]
[1746736325332,0.0328007,2145.0,2144.2,4.66358773]
[1746736325529,0.0328007,2145.0,2143.7,3.0]
[1746736325733,0.0328007,2145.0,2143.6,0.7937]
[1746736325940,0.0328007,2145.0,2144.0,8.06319691]
[1746736325941,0.04660994,2144.9,2144.0,8.06319691]
[1746736326179,0.04660994,2144.9,2143.7,3.0]
[1746736326180,4.66356942,2144.3,2144.1,4.83]
[1746736326471,0.07941064,2145.0,2143.6,0.7937]
[1746736326472,4.66433528,2144.0,2143.7,0.04663177]
[1746736326685,4.66461423,2143.8,2142.8,5.6417]
[1746736326837,4.66548923,2143.4,2142.9,4.862]
[1746736327180,0.0328007,2145.0,2143.4,4.665489]
[1746736327332,0.0328007,2145.0,2143.5,1.30187692]
[1746736327533,0.07941064,2145.0,2143.8,8.06319691]
[1746736327733,0.0328007,2145.0,2144.9,4.66222201]
[1746736327934,0.005,2145.1,2145.0,7.66200466]
[1746736328178,0.5,2145.5,2145.0,3.0]
[1746736328336,0.5,2145.5,2145.0,4.66185276]
[1746736328530,0.5,2145.5,2145.1,0.046606]
[1746736328743,0.035,2146.7,2145.4,7.66113545]
[1746736328935,0.035,2146.7,2145.5,3.0]
[1746736329251,0.8083,2146.4,2144.3,0.8091]
[1746736329436,5.01160994,2146.3,2144.3,0.8091]
[1746736329727,4.65961511,2146.1,2144.3,0.8091]
[1746736329934,4.66222201,2144.9,2143.9,0.826]
[1746736330133,0.83640994,2145.0,2143.9,0.826]
[1746736330378,0.04660994,2145.7,2145.2,4.66152485]
[1746736330585,0.7787,2146.5,2145.3,5.086]
[1746736330872,5.43942897,2145.6,2144.3,0.7696]
[1746736331076,0.59055284,2145.5,2144.5,4.66309162]
[1746736331232,16.814,2145.9,2144.8,4.66235325]
[1746736331437,0.04660994,2145.8,2144.3,0.7696]
[1746736331674,4.66286124,2144.7,2144.3,0.7696]
[1746736331859,0.04660994,2145.2,2144.3,0.7696]
[1746736332142,0.7787,2145.5,2144.3,0.7696]
[1746736332143,4.66105694,2145.5,2144.8,4.66240329]
[1746736332334,0.04660994,2145.8,2144.8,0.7696]
[1746736332575,4.66094036,2145.5,2144.9,4.70869429]
[1746736332774,4.65896384,2146.4,2145.2,3.0]
[1746736332933,0.67858812,2146.3,2144.8,3.7696]
[1746736333134,4.66157001,2145.2,2144.9,0.04660632]
[1746736333441,4.66157001,2145.2,2144.2,4.66367948]
[1746736333442,4.66396156,2144.1,2143.9,0.7599]
[1746736333637,0.04660994,2144.0,2143.0,0.7599]
[1746736333837,4.66439666,2143.9,2143.1,0.04664963]
[1746736334080,4.66613783,2143.1,2143.0,0.7599]
[1746736334235,4.66613783,2143.1,2142.6,5.139]
[1746736334236,0.54330967,2143.8,2142.7,4.66682079]
[1746736334437,1.31246638,2146.3,2145.2,4.66144152]
[1746736334666,0.02390694,2147.0,2145.4,0.7599]
[1746736334667,0.04660994,2146.2,2145.4,0.7599]
[1746736334892,5.16360994,2146.6,2145.1,3.0]
[1746736335053,4.65874679,2146.5,2145.2,0.04660578]
[1746736335254,0.04660994,2146.5,2145.2,0.04159589]
[1746736335452,0.8037,2146.7,2145.7,3.0]
[1746736335453,4.74502555,2146.7,2145.7,3.0]
[1746736335769,4.65867751,2146.6,2145.8,0.04658829]
[1746736335976,0.7687,2147.1,2146.1,4.6595013]
[1746736336151,4.53779336,2147.0,2146.2,0.7599]
[1746736336478,4.53779336,2147.0,2146.3,0.04658356]
[1746736336479,4.65766185,2147.0,2146.3,0.04658356]
[1746736336704,4.65766185,2147.0,2145.8,0.7599]
[1746736336986,5.20052196,2146.9,2145.9,4.65997774]
[1746736337138,4.65835852,2146.7,2146.0,0.7599]
[1746736337340,4.65836082,2146.7,2145.6,0.7599]
[1746736337569,4.65836082,2146.7,2144.4,19.807]
[1746736337570,4.66039246,2145.8,2145.1,0.7599]
[1746736337756,4.65828185,2146.8,2145.3,8.06319691]
[1746736337967,1.31133619,2146.9,2145.4,3.7599]
[1746736338160,4.65854215,2146.6,2145.9,4.65990273]